fUSD/lending_fUSD_20260118
["ID","MTS","AMOUNT","RATE_DAILY","PERIOD"]
[402545897,1768704666911,-279.766713,0.00016712,2]
[402545898,1768704666921,-1374.153755,0.00016712,2]
[402545899,1768704666930,-500.0,0.00016712,2]
[402545900,1768704666939,-850.44348,0.00016712,2]
[402545901,1768704666949,-1374.153755,0.00016712,2]
[402545902,1768704666959,-850.44348,0.00016712,2]
[402545903,1768704666968,-849.28,0.00016712,2]
[402545904,1768704666978,-500.0,0.00016712,2]
[402545905,1768704666987,-850.44348,0.00016712,2]
[402545906,1768704666996,-500.0,0.00016712,2]
[402545907,1768704667006,-554.17,0.00016712,2]
[402545908,1768704667015,-850.44348,0.00016712,2]
[402545909,1768704667025,-151.0,0.00016712,2]
[402545910,1768704667034,-500.0,0.00016712,2]
[402545911,1768704667043,-500.0,0.00016712,2]
[402545912,1768704667053,-500.0,0.00016712,2]
[402545913,1768704667062,-423.863591,0.00016712,2]
[402545914,1768704667072,-151.0,0.00016712,2]
[402545915,1768704667081,-656.33,0.00016712,2]
[402545916,1768704667090,-257.183524,0.00016712,2]
[402545917,1768704667100,-500.0,0.00016712,2]
[402545918,1768704667109,-423.863591,0.00016712,2]
[402545919,1768704667118,-151.0,0.00016712,2]
[402545920,1768704667128,-257.183524,0.00016712,2]
[402545921,1768704667137,-855.830383,0.00016712,2]
[402545922,1768704667146,-423.863591,0.00016712,2]
[402545923,1768704667160,-151.0,0.00016712,2]
[402545924,1768704667169,-257.183524,0.00016712,2]
[402545925,1768704667178,-500.0,0.00016712,2]
[402545926,1768704667187,-828.81,0.00016712,2]
[402545927,1768704667196,-855.830383,0.00016712,2]
[402545928,1768704667205,-423.863591,0.00016712,2]
[402545929,1768704667214,-1041.03,0.00016712,2]
[402545930,1768704667224,-500.0,0.00016712,2]
[402545931,1768704667234,-267.099358,0.00016712,2]
[402545932,1768704667243,-257.183524,0.00016712,2]
[402545933,1768704667253,-855.830383,0.00016712,2]
[402545934,1768704667263,-500.0,0.00016712,2]
[402545935,1768704667274,-855.830383,0.00016712,2]
[402545936,1768704667284,-173.33393003,0.00016712,2]
[402545937,1768704667293,-2575.951288,0.00016712,2]
[402545938,1768704667302,-1035.972722,0.00016712,2]
[402545939,1768704667311,-2575.951288,0.00016712,2]
[402545940,1768704667321,-652.83,0.00016712,2]
[402545941,1768704667330,-704.21,0.00016712,2]
[402545942,1768704667339,-610.279378,0.00016712,2]
[402545943,1768704667349,-151.0,0.00016712,2]
[402545944,1768704667358,-500.0,0.00016712,2]
[402545945,1768704667367,-1035.972722,0.00016712,2]
[402545946,1768704667377,-2575.951288,0.00016712,2]
[402545947,1768704667386,-593.79,0.00016712,2]
[402545948,1768704667395,-500.0,0.00016712,2]
[402545949,1768704667404,-610.279378,0.00016712,2]
[402545950,1768704667414,-151.0,0.00016712,2]
[402545951,1768704667423,-1035.972722,0.00016712,2]
[402545952,1768704667433,-1235.814418,0.00016712,2]
[402545953,1768704667446,-2575.951288,0.00016712,2]
[402545954,1768704667455,-1293.52,0.00016712,2]
[402545955,1768704667465,-284.412342,0.00016712,2]
[402545956,1768704667474,-2171.701287,0.00016712,2]
[402545957,1768704667484,-151.0,0.00016712,2]
[402545958,1768704667494,-610.279378,0.00016712,2]
[402545959,1768704667503,-500.0,0.00016712,2]
[402545960,1768704667513,-1235.814418,0.00016712,2]
[402545961,1768704667527,-1035.972722,0.00016712,2]
[402545962,1768704667536,-284.412342,0.00016712,2]
[402545963,1768704667546,-747.18,0.00016712,2]
[402545964,1768704667555,-610.279378,0.00016712,2]
[402545965,1768704667565,-2171.701287,0.00016712,2]
[402545966,1768704667574,-1235.814418,0.00016712,2]
[402545967,1768704667583,-500.0,0.00016712,2]
[402545968,1768704667592,-284.412342,0.00016712,2]
[402545969,1768704667602,-500.0,0.00016712,2]
[402545970,1768704667611,-500.0,0.00016712,2]
[402545971,1768704667620,-2171.701287,0.00016712,2]
[402545972,1768704667630,-1096.422466,0.00016712,2]
[402545973,1768704667639,-500.0,0.00016712,2]
[402545974,1768704667648,-1235.814418,0.00016712,2]
[402545975,1768704667658,-284.412342,0.00016712,2]
[402545976,1768704667667,-514.03,0.00016712,2]
[402545977,1768704667676,-2171.701287,0.00016712,2]
[402545978,1768704667689,-1096.422466,0.00016712,2]
[402545979,1768704667698,-642.56,0.00016712,2]
[402545980,1768704667707,-580.083029,0.00016712,2]
[402545981,1768704667717,-615.25498,0.00016712,2]
[402545982,1768704667728,-1096.422466,0.00016712,2]
[402545983,1768704667737,-706.13,0.00016712,2]
[402545984,1768704667747,-506.74700569,0.00016712,2]
[402545985,1768704667756,-930.603986,0.00016712,2]
[402545986,1768704667766,-500.0,0.00016712,2]
[402545987,1768704667775,-580.083029,0.00016712,2]
[402545988,1768704667784,-615.25498,0.00016712,2]
[402545989,1768704667793,-567.23,0.00016712,2]
[402545990,1768704667803,-622.09,0.00016712,2]
[402545991,1768704667812,-500.0,0.00016712,2]
[402545992,1768704667822,-930.603986,0.00016712,2]
[402545993,1768704667833,-1096.422466,0.00016712,2]
[402545994,1768704667844,-580.083029,0.00016712,2]
[402545995,1768704667854,-615.25498,0.00016712,2]
[402545996,1768704667864,-704.428392,0.00016712,2]
[402545997,1768704667873,-652.840886,0.00016712,2]
[402545998,1768704667882,-930.603986,0.00016712,2]
[402545999,1768704667895,-580.083029,0.00016712,2]
[402546000,1768704667905,-500.0,0.00016712,2]
[402546001,1768704667915,-704.428392,0.00016712,2]
[402546002,1768704667924,-615.25498,0.00016712,2]
[402546003,1768704667935,-500.0,0.00016712,2]
[402546004,1768704667944,-526.47,0.00016712,2]
[402546005,1768704667953,-930.603986,0.00016712,2]
[402546006,1768704667962,-704.428392,0.00016712,2]
[402546007,1768704667972,-187.995083,0.00016712,2]
[402546008,1768704667982,-500.0,0.00016712,2]
[402546009,1768704667991,-704.428392,0.00016712,2]
[402546010,1768704668000,-500.0,0.00016712,2]
[402546011,1768704668011,-500.0,0.00016712,2]
[402546012,1768704668021,-500.0,0.00016712,2]
[402546013,1768704668032,-500.0,0.00016712,2]
[402546014,1768704668041,-769.53,0.00016712,2]
[402546015,1768704668051,-500.0,0.00016712,2]
[402546016,1768704668061,-500.0,0.00016712,2]
[402546017,1768704668071,-652.840886,0.00016712,2]
[402546018,1768704668081,-500.0,0.00016712,2]
[402546019,1768704668095,-500.0,0.00016712,2]
[402546020,1768704668104,-500.0,0.00016712,2]
[402546021,1768704668114,-614.22,0.00016712,2]
[402546022,1768704668123,-652.840886,0.00016712,2]
[402546023,1768704668133,-500.0,0.00016712,2]
[402546024,1768704668143,-500.0,0.00016712,2]
[402546025,1768704668153,-1074.489664,0.00016712,2]
[402546026,1768704668162,-500.0,0.00016712,2]
[402546027,1768704668172,-685.95,0.00016712,2]
[402546028,1768704668182,-500.0,0.00016712,2]
[402546029,1768704668191,-652.840886,0.00016712,2]
[402546030,1768704668201,-1074.489664,0.00016712,2]
[402546031,1768704668211,-500.0,0.00016712,2]
[402546032,1768704668221,-1074.489664,0.00016712,2]
[402546033,1768704668233,-500.0,0.00016712,2]
[402546034,1768704668243,-500.0,0.00016712,2]
[402546035,1768704668255,-500.0,0.00016712,2]
[402546036,1768704668266,-538.24,0.00016712,2]
[402546037,1768704668278,-1074.489664,0.00016712,2]
[402546038,1768704668291,-500.0,0.00016712,2]
[402546039,1768704668301,-518.15,0.00016712,2]
[402546040,1768704668310,-522.43,0.00016712,2]
[402546041,1768704668320,-828.15,0.00016712,2]
[402546042,1768704668330,-583.36,0.00016712,2]
[402546043,1768704668340,-746.7,0.00016712,2]
[402546044,1768704668350,-733.72,0.00016712,2]
[402546045,1768704668359,-151.0,0.00016712,2]
[402546046,1768704668368,-932.56,0.00016712,2]
[402546047,1768704668378,-261.003409,0.00016712,2]
[402546048,1768704668388,-151.0,0.00016712,2]
[402546049,1768704668398,-500.0,0.00016712,2]
[402546050,1768704668407,-151.0,0.00016712,2]
[402546051,1768704668417,-261.003409,0.00016712,2]
[402546052,1768704668427,-500.0,0.00016712,2]
[402546053,1768704668437,-151.0,0.00016712,2]
[402546054,1768704668447,-261.003409,0.00016712,2]
[402546055,1768704668457,-500.0,0.00016712,2]
[402546056,1768704668467,-261.003409,0.00016712,2]
[402546057,1768704668478,-937.7,0.00016712,2]
[402546058,1768704668488,-500.0,0.00016712,2]
[402546059,1768704668498,-500.0,0.00016712,2]
[402546060,1768704668508,-711.37,0.00016712,2]
[402546061,1768704668518,-266.18201,0.00016712,2]
[402546062,1768704668527,-500.0,0.00016712,2]
[402546063,1768704668537,-566.38,0.00016712,2]
[402546064,1768704668547,-266.18201,0.00016712,2]
[402546065,1768704668557,-500.0,0.00016712,2]
[402546066,1768704668567,-500.0,0.00016712,2]
[402546067,1768704668576,-446.630138,0.00016712,2]
[402546068,1768704668586,-266.18201,0.00016712,2]
[402546069,1768704668595,-500.0,0.00016712,2]
[402546070,1768704668605,-500.0,0.00016712,2]
[402546071,1768704668614,-598.62,0.00016712,2]
[402546072,1768704668624,-500.0,0.00016712,2]
[402546073,1768704668634,-266.18201,0.00016712,2]
[402546074,1768704668644,-446.630138,0.00016712,2]
[402546075,1768704668653,-193.064285,0.00016712,2]
[402546076,1768704668663,-1102.649028,0.00016712,2]
[402546077,1768704668672,-636.73,0.00016712,2]
[402546078,1768704668682,-446.630138,0.00016712,2]
[402546079,1768704668695,-151.0,0.00016712,2]
[402546080,1768704668704,-672.552879,0.00016712,2]
[402546081,1768704668714,-193.064285,0.00016712,2]
[402546082,1768704668723,-500.0,0.00016712,2]
[402546083,1768704668732,-1102.649028,0.00016712,2]
[402546084,1768704668742,-500.0,0.00016712,2]
[402546085,1768704668751,-446.630138,0.00016712,2]
[402546086,1768704668762,-151.0,0.00016712,2]
[402546087,1768704668771,-193.064285,0.00016712,2]
[402546088,1768704668781,-672.552879,0.00016712,2]
[402546089,1768704668790,-500.0,0.00016712,2]
[402546090,1768704668800,-500.0,0.00016712,2]
[402546091,1768704668810,-1102.649028,0.00016712,2]
[402546092,1768704668819,-976.47,0.00016712,2]
[402546093,1768704668829,-301.882211,0.00016712,2]
[402546094,1768704668839,-193.064285,0.00016712,2]
[402546095,1768704668849,-672.552879,0.00016712,2]
[402546096,1768704668860,-500.0,0.00016712,2]
[402546097,1768704668878,-1102.649028,0.00016712,2]
[402546098,1768704668898,-500.0,0.00016712,2]
[402546099,1768704668913,-1221.825216,0.00016712,2]
[402546100,1768704668922,-978.58,0.00016712,2]
[402546101,1768704668932,-500.0,0.00016712,2]
[402546102,1768704668942,-672.552879,0.00016712,2]
[402546103,1768704668951,-244.80682,0.00016712,2]
[402546104,1768704668962,-1221.825216,0.00016712,2]
[402546105,1768704668971,-244.80682,0.00016712,2]
[402546106,1768704668981,-500.0,0.00016712,2]
[402546107,1768704668991,-158.97048167,0.00016712,2]
[402546108,1768704669000,-1221.825216,0.00016712,2]
[402546109,1768704669009,-156.784273,0.00016712,2]
[402546110,1768704669017,-244.80682,0.00016712,2]
[402546111,1768704669026,-500.0,0.00016712,2]
[402546112,1768704669036,-1221.825216,0.00016712,2]
[402546113,1768704669045,-156.784273,0.00016712,2]
[402546114,1768704669054,-500.0,0.00016712,2]
[402546115,1768704669064,-500.0,0.00016712,2]
[402546116,1768704669075,-500.0,0.00016712,2]
[402546117,1768704669092,-244.80682,0.00016712,2]
[402546118,1768704669103,-500.0,0.00016712,2]
[402546119,1768704669113,-500.0,0.00016712,2]
[402546120,1768704669122,-156.784273,0.00016712,2]
[402546121,1768704669131,-500.0,0.00016712,2]
[402546122,1768704669141,-288.790084,0.00016712,2]
[402546123,1768704669150,-500.0,0.00016712,2]
[402546124,1768704669159,-568.1,0.00016712,2]
[402546125,1768704669169,-500.0,0.00016712,2]
[402546126,1768704669178,-156.784273,0.00016712,2]
[402546127,1768704669187,-288.790084,0.00016712,2]
[402546128,1768704669198,-500.0,0.00016712,2]
[402546129,1768704669207,-288.790084,0.00016712,2]
[402546130,1768704669216,-288.790084,0.00016712,2]
[402546131,1768704669226,-500.0,0.00016712,2]
[402546132,1768704669236,-500.0,0.00016712,2]
[402546133,1768704669246,-500.0,0.00016712,2]
[402546134,1768704669256,-500.0,0.00016712,2]
[402546135,1768704669266,-503.39,0.00016712,2]
[402546136,1768704669276,-500.0,0.00016712,2]
[402546137,1768704669286,-768.5,0.00016712,2]
[402546138,1768704669295,-500.0,0.00016712,2]
[402546139,1768704669306,-163.60553,0.00016712,2]
[402546140,1768704669316,-500.0,0.00016712,2]
[402546141,1768704669325,-500.0,0.00016712,2]
[402546142,1768704669335,-500.0,0.00016712,2]
[402546143,1768704669345,-541.41693601,0.00016712,2]
[402546144,1768704669354,-639.7,0.00016712,2]
[402546145,1768704669364,-509.53006756,0.00016712,2]
[402546146,1768704669374,-500.0,0.00016712,2]
[402546147,1768704669384,-542.99228611,0.00016712,2]
[402546148,1768704669394,-505.25613227,0.00016712,2]
[402546149,1768704669403,-500.0,0.00016712,2]
[402546150,1768704669413,-744.82,0.00016712,2]
[402546151,1768704669422,-730.582084,0.00016712,2]
[402546152,1768704669431,-550.76,0.00016712,2]
[402546153,1768704669441,-730.582084,0.00016712,2]
[402546154,1768704669450,-500.0,0.00016712,2]
[402546155,1768704669459,-500.0,0.00016712,2]
[402546156,1768704669469,-578.75,0.00016712,2]
[402546157,1768704669479,-730.582084,0.00016712,2]
[402546158,1768704669489,-315.13,0.00016712,2]
[402546159,1768704669498,-730.582084,0.00016712,2]
[402546160,1768704669508,-500.0,0.00016712,2]
[402546161,1768704669517,-500.0,0.00016712,2]
[402546162,1768704669527,-500.0,0.00016712,2]
[402546163,1768704669536,-500.0,0.00016712,2]
[402546164,1768704669547,-500.0,0.00016712,2]
[402546165,1768704669556,-500.0,0.00016712,2]
[402546166,1768704669566,-500.0,0.00016712,2]
[402546167,1768704669575,-157.27990513,0.00016712,2]
[402546168,1768704669585,-370.96428811,0.00016712,2]
[402546169,1768704669595,-500.0,0.00016712,2]
[402546170,1768704669604,-151.0,0.00016712,2]
[402546171,1768704669614,-500.0,0.00016712,2]
[402546172,1768704669624,-500.0,0.00016712,2]
[402546173,1768704669634,-500.0,0.00016712,2]
[402546174,1768704669643,-500.0,0.00016712,2]
[402546175,1768704669652,-151.0,0.00016712,2]
[402546176,1768704669662,-523.82,0.00016712,2]
[402546177,1768704669671,-500.0,0.00016712,2]
[402546178,1768704669683,-169.440474,0.00016712,2]
[402546179,1768704669693,-511.36,0.00016712,2]
[402546180,1768704669703,-500.0,0.00016712,2]
[402546181,1768704669712,-579.99143,0.00016712,2]
[402546182,1768704669721,-708.692959,0.00016712,2]
[402546183,1768704669732,-500.0,0.00016712,2]
[402546184,1768704669742,-500.0,0.00016712,2]
[402546185,1768704669752,-579.99143,0.00016712,2]
[402546186,1768704669888,-500.0,0.00016712,2]
[402546187,1768704669933,-500.0,0.00016712,2]
[402546188,1768704669944,-708.692959,0.00016712,2]
[402546189,1768704669954,-151.0,0.00016712,2]
[402546190,1768704669963,-500.0,0.00016712,2]
[402546191,1768704669972,-511.15,0.00016712,2]
[402546192,1768704669982,-500.0,0.00016712,2]
[402546193,1768704669992,-579.99143,0.00016712,2]
[402546194,1768704670002,-500.0,0.00016712,2]
[402546195,1768704670012,-708.692959,0.00016712,2]
[402546196,1768704670021,-777.87762,0.00016712,2]
[402546197,1768704670031,-777.87762,0.00016712,2]
[402546198,1768704670040,-579.99143,0.00016712,2]
[402546199,1768704670049,-500.0,0.00016712,2]
[402546200,1768704670059,-708.692959,0.00016712,2]
[402546201,1768704670068,-777.87762,0.00016712,2]
[402546202,1768704670078,-500.0,0.00016712,2]
[402546203,1768704670087,-777.87762,0.00016712,2]
[402546204,1768704670097,-653.96,0.00016712,2]
[402546205,1768704670106,-519.76,0.00016712,2]
[402546206,1768704670115,-500.0,0.00016712,2]
[402546207,1768704670124,-500.0,0.00016712,2]
[402546208,1768704670133,-777.87762,0.00016712,2]
[402546209,1768704670143,-777.87762,0.00016712,2]
[402546210,1768704670152,-151.0,0.00016712,2]
[402546211,1768704670162,-500.0,0.00016712,2]
[402546212,1768704670174,-777.87762,0.00016712,2]
[402546213,1768704670183,-777.87762,0.00016712,2]
[402546214,1768704670193,-546.259073,0.00016712,2]
[402546215,1768704670203,-546.259073,0.00016712,2]
[402546216,1768704670212,-583.4,0.00016712,2]
[402546217,1768704670222,-546.259073,0.00016712,2]
[402546218,1768704670231,-546.259073,0.00016712,2]
[402546219,1768704670240,-500.0,0.00016712,2]
[402546220,1768704670261,-500.0,0.00016712,2]
[402546221,1768704670270,-151.0,0.00016712,2]
[402546222,1768704670280,-279.116326,0.00016712,2]
[402546223,1768704670289,-151.0,0.00016712,2]
[402546224,1768704670299,-500.0,0.00016712,2]
[402546225,1768704670310,-3134.37211,0.00016712,2]
[402546226,1768704670320,-546.259073,0.00016712,2]
[402546227,1768704670330,-546.259073,0.00016712,2]
[402546228,1768704670339,-984.61,0.00016712,2]
[402546229,1768704670348,-527.66,0.00016712,2]
[402546230,1768704670358,-3134.37211,0.00016712,2]
[402546231,1768704670367,-546.259073,0.00016712,2]
[402546232,1768704670376,-546.259073,0.00016712,2]
[402546233,1768704670386,-500.0,0.00016712,2]
[402546234,1768704670395,-648.686324,0.00016712,2]
[402546235,1768704670404,-648.686324,0.00016712,2]
[402546236,1768704670413,-3134.37211,0.00016712,2]
[402546237,1768704670422,-500.0,0.00016712,2]
[402546238,1768704670431,-648.686324,0.00016712,2]
[402546239,1768704670440,-648.686324,0.00016712,2]
[402546240,1768704670450,-8020.14,0.00016712,2]
[402546241,1768704670459,-3134.37211,0.00016712,2]
[402546242,1768704670468,-500.0,0.00016712,2]
[402546243,1768704670478,-648.686324,0.00016712,2]
[402546244,1768704670490,-520.18,0.00016712,2]
[402546245,1768704670500,-648.686324,0.00016712,2]
[402546246,1768704670510,-436.09619822,0.00016712,2]
[402546247,1768704670519,-500.0,0.00016712,2]
[402546248,1768704670528,-811.1,0.00016712,2]
[402546249,1768704670537,-648.686324,0.00016712,2]
[402546250,1768704670547,-648.686324,0.00016712,2]
[402546251,1768704670556,-500.0,0.00016712,2]
[402546252,1768704670566,-500.0,0.00016712,2]
[402546253,1768704670577,-340.82659293,0.00016712,2]
[402546254,1768704670587,-779.399026,0.00016712,2]
[402546255,1768704670596,-151.0,0.00016712,2]
[402546256,1768704670605,-779.399026,0.00016712,2]
[402546257,1768704670615,-151.0,0.00016712,2]
[402546258,1768704670624,-779.399026,0.00016712,2]
[402546259,1768704670634,-500.0,0.00016712,2]
[402546260,1768704670644,-151.0,0.00016712,2]
[402546261,1768704670654,-779.399026,0.00016712,2]
[402546262,1768704670664,-151.0,0.00016712,2]
[402546263,1768704670673,-500.0,0.00016712,2]
[402546264,1768704670683,-500.0,0.00016712,2]
[402546265,1768704670695,-500.0,0.00016712,2]
[402546266,1768704670704,-779.399026,0.00016712,2]
[402546267,1768704670714,-371.43,0.00016712,4]
[402546268,1768704670723,-1000.0,0.00016712,2]
[402546269,1768704670733,-150.0,0.00016717,2]
[402546270,1768704670744,-150.0,0.00016721,2]
[402546271,1768704670754,-491.33634829,0.00016744,2]
[402546272,1768704670766,-150.0,0.00016747,2]
[402546273,1768704670776,-150.0,0.00016747,2]
[402546274,1768704670785,-150.0,0.00016751,2]
[402546275,1768704670795,-1000.0,0.00016757,2]
[402546276,1768704670805,-150.0,0.00016759,2]
[402546277,1768704670815,-1000.0,0.0001676,2]
[402546278,1768704670826,-150.0,0.0001677,2]
[402546279,1768704670838,-500.0,0.00016773,2]
[402546280,1768704670849,-500.0,0.00016773,2]
[402546281,1768704670858,-500.0,0.00016773,2]
[402546282,1768704670867,-500.0,0.00016773,2]
[402546283,1768704670877,-500.0,0.00016773,2]
[402546284,1768704670886,-500.0,0.00016773,2]
[402546285,1768704670896,-500.0,0.00016773,2]
[402546286,1768704670905,-501.42696741,0.00016773,2]
[402546287,1768704670915,-500.0,0.00016773,2]
[402546288,1768704670924,-500.0,0.00016773,2]
[402546289,1768704670934,-500.0,0.00016773,2]
[402546290,1768704670944,-500.0,0.00016773,2]
[402546291,1768704670953,-500.42876447,0.00016773,2]
[402546292,1768704670964,-500.0,0.00016773,2]
[402546293,1768704670973,-500.0,0.00016773,2]
[402546294,1768704670983,-500.0,0.00016773,2]
[402546295,1768704670993,-500.0,0.00016773,2]
[402546296,1768704671003,-543.92836655,0.00016773,2]
[402546297,1768704671013,-500.95736945,0.00016773,2]
[402546298,1768704671026,-500.0,0.00016773,2]
[402546299,1768704671037,-500.0,0.00016773,2]
[402546300,1768704671046,-313.23943443,0.00016773,2]
[402546301,1768704671056,-500.0,0.00016773,2]
[402546302,1768704671065,-500.0,0.00016773,2]
[402546303,1768704671075,-500.0,0.00016773,2]
[402546304,1768704671085,-500.0,0.00016773,2]
[402546305,1768704671094,-500.0,0.00016773,2]
[402546306,1768704671104,-500.64812961,0.00016773,2]
[402546307,1768704671113,-500.0,0.00016773,2]
[402546308,1768704671123,-500.0,0.00016773,2]
[402546309,1768704671132,-500.0,0.00016773,2]
[402546310,1768704671143,-500.0,0.00016773,2]
[402546311,1768704671152,-500.0,0.00016773,2]
[402546312,1768704671161,-165.94822742,0.00016773,2]
[402546313,1768704671172,-500.0,0.00016773,2]
[402546314,1768704671181,-150.0,0.0001678,2]
[402546315,1768704671191,-150.0,0.00016797,2]
[402546316,1768704671200,-4700.0,0.000168,6]
[402546317,1768704671210,-150.0,0.00016807,2]
[402546318,1768704671219,-150.0,0.0001681,2]
[402546319,1768704671229,-150.0,0.00016818,2]
[402546320,1768704671239,-1000.0,0.00016824,2]
[402546321,1768704671248,-150.0,0.00016828,2]
[402546322,1768704671258,-150.0,0.0001684,2]
[402546323,1768704671268,-3204.0,0.00016852,2]
[402546324,1768704671279,-150.0,0.00016853,2]
[402546325,1768704671290,-150.0,0.00016859,2]
[402546326,1768704671299,-150.0,0.00016865,2]
[402546327,1768704671310,-150.0,0.0001687,2]
[402546328,1768704671320,-150.0,0.00016878,2]
[402546329,1768704671332,-276.5178236,0.00016886,2]
[402546330,1768704671343,-211.61539095,0.00016886,2]
[402546331,1768704671354,-3032.55770297,0.00016886,2]
[402546332,1768704671364,-2372.86128742,0.00016886,2]
[402546333,1768704671374,-425.03740357,0.00016886,2]
[402546334,1768704671384,-17724.84080165,0.00016886,2]
[402546335,1768704671393,-150.0,0.00016899,2]
[402546336,1768704671403,-5900.0,0.000169,6]
[402546337,1768704671412,-300.0,0.000169,2]
[402546338,1768704671421,-500.0,0.000169,2]
[402546339,1768704671431,-150.0,0.00016902,2]
[402546340,1768704671443,-1125.3,0.00016922,2]
[402546341,1768704671452,-611.06365447,0.00016925,2]
[402546342,1768704671462,-150.0,0.00016929,2]
[402546343,1768704671472,-1874.84,0.00016938,2]
[402546344,1768704671481,-226.58639529,0.00016959,2]
[402546345,1768704671491,-292.39179801,0.00016959,2]
[402546346,1768704671501,-162.00243183,0.00016959,2]
[402546347,1768704671510,-192.99771562,0.00016959,2]
[402546348,1768704671519,-170.37649707,0.00016959,2]
[402546349,1768704671529,-220.83708674,0.00016959,2]
[402546350,1768704671539,-150.39481531,0.00016959,2]
[402546351,1768704671548,-150.62813762,0.00016959,2]
[402546352,1768704671558,-159.8708442,0.00016959,2]
[402546353,1768704671567,-236.454053,0.00016959,2]
[402546354,1768704671577,-150.48546304,0.00016959,2]
[402546355,1768704671586,-157.30887077,0.00016959,2]
[402546356,1768704671596,-154.62879639,0.00016959,2]
[402546357,1768704671606,-258.83027146,0.00016959,2]
[402546358,1768704671615,-161.0,0.00016959,2]
[402546359,1768704671624,-500.0,0.00016959,2]
[402546360,1768704671634,-150.0,0.00016959,2]
[402546361,1768704671643,-200.0,0.00016973,2]
[402546362,1768704671652,-150.0,0.00016976,2]
[402546363,1768704671662,-1851.0,0.00016976,2]
[402546364,1768704671671,-150.0,0.0001698,2]
[402546365,1768704671686,-300.0,0.00016981,2]
[402546366,1768704671696,-38633.67005521,0.00016982,2]
[402546367,1768704671705,-334.43198416,0.00016985,2]
[402546368,1768704671715,-979.80974503,0.00016986,2]
[402546369,1768704671725,-511.72077288,0.00016986,2]
[402546370,1768704671734,-500.0,0.00016986,2]
[402546371,1768704671743,-500.0,0.00016986,2]
[402546372,1768704671753,-509.94754224,0.00016986,2]
[402546373,1768704671762,-151.0,0.00016986,2]
[402546374,1768704671772,-151.0,0.00016986,2]
[402546375,1768704671781,-151.0,0.00016986,2]
[402546376,1768704671790,-500.0,0.00016986,2]
[402546377,1768704671799,-255.647116,0.00016986,2]
[402546378,1768704671808,-255.647116,0.00016986,2]
[402546379,1768704671817,-500.0,0.00016986,2]
[402546380,1768704671827,-255.647116,0.00016986,2]
[402546381,1768704671836,-524.58,0.00016986,2]
[402546382,1768704671845,-255.647116,0.00016986,2]
[402546383,1768704671854,-660.78,0.00016986,2]
[402546384,1768704671863,-500.0,0.00016986,2]
[402546385,1768704671872,-151.0,0.00016986,2]
[402546386,1768704671882,-500.0,0.00016986,2]
[402546387,1768704671891,-500.0,0.00016986,2]
[402546388,1768704671901,-500.0,0.00016986,2]
[402546389,1768704671910,-500.0,0.00016986,2]
[402546390,1768704671919,-500.0,0.00016986,2]
[402546391,1768704671929,-599.82,0.00016986,2]
[402546392,1768704671938,-500.0,0.00016986,2]
[402546393,1768704671948,-500.0,0.00016986,2]
[402546394,1768704671957,-500.0,0.00016986,2]
[402546395,1768704671966,-151.0,0.00016986,2]
[402546396,1768704671975,-500.0,0.00016986,2]